[Event "Late-Titled-Tuesday-Blitz-October-10-2023"]
[Site "Chess.com"]
[Date "2023.10.10"]
[Round "5"]
[White "Langua_Chess"]
[Black "greekplayer1"]
[Result "0-1"]
[WhiteElo "2478"]
[BlackElo "2665"]
[TimeControl "180+1"]
[EndTime "14:51:05 PDT"]
[Termination "greekplayer1 won on time"]

1. e4 {[%clk 0:03:00.9]} 1... c5 {[%clk 0:02:59.1]} 2. Nf3 {[%clk 0:03:00.1]}
2... d6 {[%clk 0:02:55.9]} 3. d4 {[%clk 0:02:59.7]} 3... cxd4 {[%clk 0:02:56.8]}
4. Nxd4 {[%clk 0:03:00]} 4... Nf6 {[%clk 0:02:57.3]} 5. Nc3 {[%clk 0:02:59.9]}
5... a6 {[%clk 0:02:55.9]} 6. Rg1 {[%clk 0:02:50.1]} 6... e5 {[%clk 0:02:54.2]}
7. Nf5 {[%clk 0:02:16.7]} 7... Nxe4 {[%clk 0:02:50.1]} 8. Nxg7+ {[%clk
0:02:09.6]} 8... Bxg7 {[%clk 0:02:51]} 9. Nxe4 {[%clk 0:02:09.9]} 9... d5 {[%clk
0:02:49.1]} 10. Bg5 {[%clk 0:01:47.8]} 10... Qa5+ {[%clk 0:02:31.9]} 11. Bd2
{[%clk 0:01:28.6]} 11... Qb6 {[%clk 0:02:28.2]} 12. Nc3 {[%clk 0:01:28.7]} 12...
Be6 {[%clk 0:02:26.5]} 13. Na4 {[%clk 0:01:18.4]} 13... Qc6 {[%clk 0:02:21.5]}
14. b3 {[%clk 0:01:09.1]} 14... Nd7 {[%clk 0:02:20.9]} 15. Rc1 {[%clk
0:01:00.4]} 15... b5 {[%clk 0:02:19.7]} 16. Nb2 {[%clk 0:00:58]} 16... e4 {[%clk
0:02:19.8]} 17. c3 {[%clk 0:00:54.2]} 17... O-O {[%clk 0:02:18.5]} 18. Be2
{[%clk 0:00:53.7]} 18... Ne5 {[%clk 0:02:14.7]} 19. Kf1 {[%clk 0:00:53.2]} 19...
f5 {[%clk 0:02:12.3]} 20. Be3 {[%clk 0:00:48.1]} 20... f4 {[%clk 0:02:10.1]} 21.
Bd4 {[%clk 0:00:48.8]} 21... Rad8 {[%clk 0:02:06.2]} 22. Bh5 {[%clk 0:00:38.5]}
22... Qd6 {[%clk 0:01:53.7]} 23. h3 {[%clk 0:00:38.4]} 23... Kh8 {[%clk
0:01:52.1]} 24. Bg4 {[%clk 0:00:36.2]} 24... Bxg4 {[%clk 0:01:47.4]} 25. hxg4
{[%clk 0:00:36.4]} 25... f3 {[%clk 0:01:48.3]} 26. g5 {[%clk 0:00:26.8]} 26...
Ng4 {[%clk 0:01:44.5]} 27. g3 {[%clk 0:00:19.2]} 27... Qg6 {[%clk 0:01:36]} 28.
Qd2 {[%clk 0:00:19.1]} 28... Bxd4 {[%clk 0:01:31.4]} 29. Qxd4+ {[%clk 0:00:19]}
29... Kg8 {[%clk 0:01:31.9]} 30. Qd2 {[%clk 0:00:12.4]} 30... e3 {[%clk
0:01:32]} 31. fxe3 {[%clk 0:00:12.7]} 31... Qxg5 {[%clk 0:01:31.9]} 32. Nd1
{[%clk 0:00:08.6]} 32... f2 {[%clk 0:01:31.3]} 33. Rg2 {[%clk 0:00:07.6]} 33...
Qh5 {[%clk 0:01:31.6]} 34. Nxf2 {[%clk 0:00:03.8]} 34... Qh1+ {[%clk 0:01:27.8]}
35. Ke2 {[%clk 0:00:03.2]} 35... Qxg2 {[%clk 0:01:27.5]} 0-1

[Event "Late-Titled-Tuesday-Blitz-October-10-2023"]
[Site "Chess.com"]
[Date "2023.10.10"]
[Round "5"]
[White "rezamahdavi2008"]
[Black "wadsy27"]
[Result "1-0"]
[WhiteElo "2872"]
[BlackElo "2643"]
[TimeControl "180+1"]
[EndTime "14:51:07 PDT"]
[Termination "rezamahdavi2008 won by resignation"]

1. e4 {[%clk 0:02:59]} 1... e6 {[%clk 0:02:59.3]} 2. d4 {[%clk 0:02:59.1]} 2...
d5 {[%clk 0:02:59.8]} 3. e5 {[%clk 0:02:59.9]} 3... c5 {[%clk 0:02:59.3]} 4. c3
{[%clk 0:03:00.7]} 4... Nc6 {[%clk 0:02:58.5]} 5. Nf3 {[%clk 0:03:01.3]} 5...
Qb6 {[%clk 0:02:58.2]} 6. a3 {[%clk 0:02:59.9]} 6... c4 {[%clk 0:02:57.4]} 7.
Nbd2 {[%clk 0:02:44.6]} 7... Na5 {[%clk 0:02:57]} 8. Rb1 {[%clk 0:02:44.1]} 8...
Bd7 {[%clk 0:02:48.9]} 9. h4 {[%clk 0:02:44.6]} 9... Ne7 {[%clk 0:02:46.2]} 10.
h5 {[%clk 0:02:43]} 10... h6 {[%clk 0:02:46]} 11. b4 {[%clk 0:02:42.6]} 11...
cxb3 {[%clk 0:02:45.8]} 12. Nxb3 {[%clk 0:02:43.2]} 12... Ba4 {[%clk 0:02:26.9]}
13. Nxa5 {[%clk 0:02:42.7]} 13... Bxd1 {[%clk 0:02:26.9]} 14. Rxb6 {[%clk
0:02:38.8]} 14... axb6 {[%clk 0:02:26.6]} 15. Nxb7 {[%clk 0:02:28.4]} 15... Ba4
{[%clk 0:02:10.7]} 16. Nd6+ {[%clk 0:02:26.8]} 16... Kd7 {[%clk 0:02:09.6]} 17.
Nxf7 {[%clk 0:02:27.7]} 17... Rg8 {[%clk 0:02:08.8]} 18. Bd3 {[%clk 0:02:25.5]}
18... Nf5 {[%clk 0:01:44]} 19. g4 {[%clk 0:02:21]} 19... Ke8 {[%clk 0:01:42.8]}
20. gxf5 {[%clk 0:02:15.6]} 20... Kxf7 {[%clk 0:01:42.8]} 21. fxe6+ {[%clk
0:02:16.5]} 21... Kxe6 {[%clk 0:01:42.9]} 22. Nh4 {[%clk 0:02:17.4]} 22... Be8
{[%clk 0:01:11.2]} 23. Bf5+ {[%clk 0:01:49.6]} 23... Kf7 {[%clk 0:01:10.2]} 24.
Bh7 {[%clk 0:01:50.3]} 24... Bxa3 {[%clk 0:01:00.7]} 25. Bxg8+ {[%clk
0:01:41.3]} 25... Kxg8 {[%clk 0:01:01.6]} 26. Bxa3 {[%clk 0:01:42.1]} 26... Rxa3
{[%clk 0:01:01.2]} 27. Kd2 {[%clk 0:01:43]} 27... Bxh5 {[%clk 0:00:51.1]} 28.
Nf5 {[%clk 0:01:42.9]} 28... Ra2+ {[%clk 0:00:19.3]} 29. Ke3 {[%clk 0:01:42.8]}
29... Bf7 {[%clk 0:00:17.9]} 30. Rg1 {[%clk 0:01:41.1]} 30... Kf8 {[%clk
0:00:12.7]} 31. Rxg7 {[%clk 0:01:41]} 31... Be6 {[%clk 0:00:10.5]} 32. Rg6
{[%clk 0:01:41.7]} 32... Bxf5 {[%clk 0:00:06.9]} 33. Rf6+ {[%clk 0:01:42.3]}
33... Ke7 {[%clk 0:00:07.2]} 34. Rxf5 {[%clk 0:01:43.2]} 34... b5 {[%clk
0:00:07.1]} 35. Rf6 {[%clk 0:01:40]} 35... Ra3 {[%clk 0:00:07.5]} 36. Kd2 {[%clk
0:01:40.6]} 36... Ra2+ {[%clk 0:00:07.6]} 37. Kd3 {[%clk 0:01:41.3]} 37... Ra3
{[%clk 0:00:07.9]} 38. Rb6 {[%clk 0:01:42]} 38... Ra2 {[%clk 0:00:07.1]} 39.
Rxb5 {[%clk 0:01:42.5]} 39... Rxf2 {[%clk 0:00:07.3]} 40. Rxd5 {[%clk
0:01:43.2]} 40... h5 {[%clk 0:00:08]} 41. Rd6 {[%clk 0:01:43.4]} 41... h4 {[%clk
0:00:08.3]} 42. Rh6 {[%clk 0:01:44.1]} 42... Rf3+ {[%clk 0:00:08.5]} 43. Ke4
{[%clk 0:01:43.8]} 43... Rxc3 {[%clk 0:00:07.2]} 44. Rxh4 {[%clk 0:01:44.4]}
44... Rc1 {[%clk 0:00:07.2]} 45. Rh7+ {[%clk 0:01:44.7]} 1-0

[Event "Late-Titled-Tuesday-Blitz-October-10-2023"]
[Site "Chess.com"]
[Date "2023.10.10"]
[Round "5"]
[White "MathiasWomacka"]
[Black "German_Bazeev"]
[Result "1/2-1/2"]
[WhiteElo "2532"]
[BlackElo "2799"]
[TimeControl "180+1"]
[EndTime "14:51:10 PDT"]
[Termination "Game drawn by repetition"]

1. e4 {[%clk 0:03:00.9]} 1... g6 {[%clk 0:02:50.4]} 2. d4 {[%clk 0:02:59.7]}
2... Bg7 {[%clk 0:02:50.9]} 3. Nc3 {[%clk 0:02:59.9]} 3... d6 {[%clk 0:02:51.3]}
4. f4 {[%clk 0:03:00.2]} 4... Nf6 {[%clk 0:02:50.8]} 5. Nf3 {[%clk 0:02:59.6]}
5... O-O {[%clk 0:02:51.3]} 6. Bd3 {[%clk 0:02:59.8]} 6... Na6 {[%clk
0:02:51.6]} 7. O-O {[%clk 0:02:58.8]} 7... c5 {[%clk 0:02:51.7]} 8. d5 {[%clk
0:02:59.3]} 8... Bg4 {[%clk 0:02:52]} 9. Bc4 {[%clk 0:02:59.3]} 9... Nd7 {[%clk
0:02:51.5]} 10. Be3 {[%clk 0:02:45.3]} 10... Nc7 {[%clk 0:02:47.8]} 11. a4
{[%clk 0:02:43.9]} 11... b6 {[%clk 0:02:46.9]} 12. Qe1 {[%clk 0:02:18.8]} 12...
Bxf3 {[%clk 0:02:46.7]} 13. Rxf3 {[%clk 0:02:17.9]} 13... a6 {[%clk 0:02:47.4]}
14. Qh4 {[%clk 0:02:02.1]} 14... e5 {[%clk 0:02:33.9]} 15. Qxd8 {[%clk 0:01:59]}
15... Rfxd8 {[%clk 0:02:34.8]} 16. f5 {[%clk 0:01:58.4]} 16... Rab8 {[%clk
0:02:23.3]} 17. Be2 {[%clk 0:01:27.1]} 17... b5 {[%clk 0:02:04]} 18. axb5 {[%clk
0:01:26.2]} 18... axb5 {[%clk 0:02:03.1]} 19. Ra7 {[%clk 0:01:25.2]} 19... Rdc8
{[%clk 0:02:03.7]} 20. fxg6 {[%clk 0:01:14.1]} 20... fxg6 {[%clk 0:02:00.1]} 21.
Nxb5 {[%clk 0:01:13.6]} 21... Nxb5 {[%clk 0:01:49.4]} 22. Rxd7 {[%clk
0:01:12.9]} 22... Nd4 {[%clk 0:01:50.1]} 23. Rff7 {[%clk 0:00:54.7]} 23... Nxe2+
{[%clk 0:01:47.1]} 24. Kf2 {[%clk 0:00:54.5]} 24... Bf8 {[%clk 0:01:44.6]} 25.
Kxe2 {[%clk 0:00:50.2]} 25... Rxb2 {[%clk 0:01:44.2]} 26. Kd3 {[%clk 0:00:43.5]}
26... c4+ {[%clk 0:01:41.8]} 27. Kc3 {[%clk 0:00:43.2]} 27... Ra2 {[%clk
0:01:42]} 28. Rxh7 {[%clk 0:00:33.5]} 28... Rca8 {[%clk 0:01:17.3]} 29. Bg5
{[%clk 0:00:29.3]} 29... R8a3+ {[%clk 0:01:13.2]} 30. Kd2 {[%clk 0:00:26.1]}
30... Rd3+ {[%clk 0:01:13.7]} 31. Kc1 {[%clk 0:00:24.6]} 31... Rc3 {[%clk
0:01:12.9]} 32. Bf6 {[%clk 0:00:17.7]} 32... Rcxc2+ {[%clk 0:01:08.4]} 33. Kb1
{[%clk 0:00:16.7]} 33... Rab2+ {[%clk 0:01:07.6]} 34. Ka1 {[%clk 0:00:16.6]}
34... Ra2+ {[%clk 0:01:08.1]} 35. Kb1 {[%clk 0:00:17.1]} 35... Rab2+ {[%clk
0:01:09]} 36. Ka1 {[%clk 0:00:17.1]} 36... Ra2+ {[%clk 0:01:09.9]} 37. Kb1
{[%clk 0:00:17.4]} 1/2-1/2

[Event "Late-Titled-Tuesday-Blitz-October-10-2023"]
[Site "Chess.com"]
[Date "2023.10.10"]
[Round "5"]
[White "Blackwhite017"]
[Black "Javylavilla"]
[Result "1-0"]
[WhiteElo "2045"]
[BlackElo "2348"]
[TimeControl "180+1"]
[EndTime "14:51:10 PDT"]
[Termination "Blackwhite017 won by resignation"]

1. e4 {[%clk 0:03:00.9]} 1... c5 {[%clk 0:02:59]} 2. Nf3 {[%clk 0:03:00.4]} 2...
d6 {[%clk 0:02:59.4]} 3. Nc3 {[%clk 0:03:00.4]} 3... Nc6 {[%clk 0:02:57.9]} 4.
d4 {[%clk 0:02:59.3]} 4... cxd4 {[%clk 0:02:57.8]} 5. Nxd4 {[%clk 0:03:00.2]}
5... Nf6 {[%clk 0:02:58.3]} 6. Nxc6 {[%clk 0:02:53.8]} 6... bxc6 {[%clk
0:02:57.7]} 7. Bd3 {[%clk 0:02:54.2]} 7... e5 {[%clk 0:02:57]} 8. O-O {[%clk
0:02:54.2]} 8... Be7 {[%clk 0:02:56.9]} 9. h3 {[%clk 0:02:54.4]} 9... O-O {[%clk
0:02:56.5]} 10. Kh1 {[%clk 0:02:49.5]} 10... d5 {[%clk 0:02:56.3]} 11. f4 {[%clk
0:02:46]} 11... Bd6 {[%clk 0:02:36.3]} 12. exd5 {[%clk 0:02:38.4]} 12... cxd5
{[%clk 0:02:34.4]} 13. fxe5 {[%clk 0:02:32.5]} 13... Bxe5 {[%clk 0:02:35.3]} 14.
Bg5 {[%clk 0:02:31]} 14... Bb7 {[%clk 0:02:26.1]} 15. Rb1 {[%clk 0:02:13.3]}
15... h6 {[%clk 0:02:25.1]} 16. Bh4 {[%clk 0:02:05.3]} 16... Qd6 {[%clk
0:02:20.9]} 17. Rf5 {[%clk 0:01:48.6]} 17... Rae8 {[%clk 0:02:16.9]} 18. Nb5
{[%clk 0:01:46.6]} 18... Qb6 {[%clk 0:02:04.2]} 19. Qf1 {[%clk 0:01:35.3]} 19...
a6 {[%clk 0:01:58.4]} 20. Nc3 {[%clk 0:01:29.9]} 20... d4 {[%clk 0:01:58.3]} 21.
Ne2 {[%clk 0:01:19.9]} 21... Nd5 {[%clk 0:01:57.9]} 22. Bf2 {[%clk 0:00:54.5]}
22... Ne3 {[%clk 0:01:46.2]} 23. Bxe3 {[%clk 0:00:52.1]} 23... dxe3 {[%clk
0:01:47.1]} 24. Rh5 {[%clk 0:00:37.5]} 24... Re6 {[%clk 0:01:32.3]} 25. Nf4
{[%clk 0:00:22]} 25... Bxf4 {[%clk 0:01:23.6]} 26. Qxf4 {[%clk 0:00:20.5]} 26...
e2 {[%clk 0:01:24]} 27. Re5 {[%clk 0:00:14.4]} 27... Rfe8 {[%clk 0:01:20.1]} 28.
Rxe6 {[%clk 0:00:14.2]} 28... Rxe6 {[%clk 0:01:19.8]} 29. Re1 {[%clk 0:00:14.1]}
29... Qxb2 {[%clk 0:01:11.9]} 30. Qb8+ {[%clk 0:00:13.7]} 1-0

[Event "Late-Titled-Tuesday-Blitz-October-10-2023"]
[Site "Chess.com"]
[Date "2023.10.10"]
[Round "5"]
[White "tptagain"]
[Black "jguerramzllo"]
[Result "1-0"]
[WhiteElo "2879"]
[BlackElo "2656"]
[TimeControl "180+1"]
[EndTime "14:51:13 PDT"]
[Termination "tptagain won on time"]

1. Nf3 {[%clk 0:03:00.9]} 1... Nf6 {[%clk 0:02:59]} 2. b3 {[%clk 0:03:01.8]}
2... g6 {[%clk 0:02:58.6]} 3. Bb2 {[%clk 0:03:02.3]} 3... Bg7 {[%clk 0:02:59.4]}
4. g3 {[%clk 0:03:02.9]} 4... O-O {[%clk 0:02:59.9]} 5. Bg2 {[%clk 0:03:03.5]}
5... d6 {[%clk 0:02:58.4]} 6. d4 {[%clk 0:03:03.6]} 6... Nbd7 {[%clk 0:02:55.9]}
7. O-O {[%clk 0:02:56.8]} 7... c6 {[%clk 0:02:55.8]} 8. Nbd2 {[%clk 0:02:55]}
8... Qc7 {[%clk 0:02:56.2]} 9. a4 {[%clk 0:02:54]} 9... b6 {[%clk 0:02:49.9]}
10. Re1 {[%clk 0:02:32.8]} 10... Bb7 {[%clk 0:02:46.8]} 11. e4 {[%clk
0:02:32.6]} 11... e5 {[%clk 0:01:41.5]} 12. dxe5 {[%clk 0:02:32.2]} 12... Nxe5
{[%clk 0:01:40.8]} 13. Nxe5 {[%clk 0:02:26.3]} 13... dxe5 {[%clk 0:01:41.7]} 14.
Nc4 {[%clk 0:02:26.8]} 14... Ne8 {[%clk 0:01:32.5]} 15. Ba3 {[%clk 0:02:24.2]}
15... c5 {[%clk 0:01:30.7]} 16. Ne3 {[%clk 0:02:14.7]} 16... Rd8 {[%clk
0:01:28.7]} 17. Qe2 {[%clk 0:02:13.8]} 17... Nd6 {[%clk 0:01:25.6]} 18. f3
{[%clk 0:02:04.9]} 18... Rfe8 {[%clk 0:01:22.7]} 19. Rad1 {[%clk 0:02:02.7]}
19... f5 {[%clk 0:01:08.7]} 20. Bb2 {[%clk 0:01:55.7]} 20... Qf7 {[%clk
0:01:00.3]} 21. Nd5 {[%clk 0:01:51.4]} 21... Rd7 {[%clk 0:00:50.7]} 22. c4
{[%clk 0:01:49.2]} 22... h5 {[%clk 0:00:41.5]} 23. Qd2 {[%clk 0:01:26.8]} 23...
Kh7 {[%clk 0:00:39.5]} 24. a5 {[%clk 0:01:27.1]} 24... Bxd5 {[%clk 0:00:22.5]}
25. Qxd5 {[%clk 0:01:22.2]} 25... Red8 {[%clk 0:00:05.3]} 26. axb6 {[%clk
0:01:11]} 26... axb6 {[%clk 0:00:02.7]} 27. Qxf7 {[%clk 0:01:08.8]} 27... Nxf7
{[%clk 0:00:02.3]} 28. Rd5 {[%clk 0:01:06.6]} 28... Rxd5 {[%clk 0:00:01.7]} 29.
exd5 {[%clk 0:01:07]} 1-0

[Event "Late-Titled-Tuesday-Blitz-October-10-2023"]
[Site "Chess.com"]
[Date "2023.10.10"]
[Round "5"]
[White "rdarruda"]
[Black "IlanSchnaider"]
[Result "0-1"]
[WhiteElo "2504"]
[BlackElo "2777"]
[TimeControl "180+1"]
[EndTime "14:51:25 PDT"]
[Termination "IlanSchnaider won by resignation"]

1. d4 {[%clk 0:02:43.6]} 1... Nf6 {[%clk 0:02:59.8]} 2. Nf3 {[%clk 0:02:42.9]}
2... d5 {[%clk 0:02:59.7]} 3. c4 {[%clk 0:02:42]} 3... c6 {[%clk 0:02:59.6]} 4.
e3 {[%clk 0:02:41.4]} 4... Bg4 {[%clk 0:02:57.9]} 5. Nc3 {[%clk 0:02:41.4]} 5...
e6 {[%clk 0:02:52.5]} 6. b3 {[%clk 0:02:41.3]} 6... Bb4 {[%clk 0:02:48.3]} 7.
Bd2 {[%clk 0:02:40.8]} 7... O-O {[%clk 0:02:47.8]} 8. Be2 {[%clk 0:02:40.3]}
8... Nbd7 {[%clk 0:02:47.2]} 9. O-O {[%clk 0:02:39.8]} 9... Bxc3 {[%clk
0:02:44.4]} 10. Bxc3 {[%clk 0:02:39.1]} 10... Ne4 {[%clk 0:02:45.3]} 11. Bb2
{[%clk 0:02:39]} 11... f5 {[%clk 0:02:44.9]} 12. Nd2 {[%clk 0:02:35.2]} 12...
Bxe2 {[%clk 0:02:42.2]} 13. Qxe2 {[%clk 0:02:36.1]} 13... Qg5 {[%clk 0:02:39.9]}
14. f3 {[%clk 0:02:34.2]} 14... Nxd2 {[%clk 0:02:32.6]} 15. Qxd2 {[%clk
0:02:35.1]} 15... Nf6 {[%clk 0:02:30.9]} 16. Ba3 {[%clk 0:02:32.6]} 16... Rf7
{[%clk 0:02:30.2]} 17. Bd6 {[%clk 0:02:32.9]} 17... Rd8 {[%clk 0:02:26.5]} 18.
Be5 {[%clk 0:02:30.8]} 18... Nd7 {[%clk 0:02:24.3]} 19. Bf4 {[%clk 0:02:30.2]}
19... Qg6 {[%clk 0:02:23.1]} 20. a4 {[%clk 0:02:24]} 20... h6 {[%clk 0:02:20.1]}
21. a5 {[%clk 0:02:23]} 21... Kh7 {[%clk 0:02:19.6]} 22. a6 {[%clk 0:02:21.5]}
22... b6 {[%clk 0:02:19.6]} 23. Rac1 {[%clk 0:02:20.3]} 23... Qf6 {[%clk
0:02:17.5]} 24. Bd6 {[%clk 0:02:09.5]} 24... g5 {[%clk 0:02:08.9]} 25. Qc2
{[%clk 0:01:59.1]} 25... Rc8 {[%clk 0:01:50.2]} 26. g4 {[%clk 0:01:54.9]} 26...
Kg7 {[%clk 0:01:49.3]} 27. gxf5 {[%clk 0:01:43.5]} 27... exf5 {[%clk 0:01:50.2]}
28. Bg3 {[%clk 0:01:43.3]} 28... f4 {[%clk 0:01:48.6]} 29. exf4 {[%clk
0:01:37.7]} 29... Qxd4+ {[%clk 0:01:46.3]} 30. Bf2 {[%clk 0:01:37.6]} 30... Qxf4
{[%clk 0:01:46.5]} 31. cxd5 {[%clk 0:01:37.7]} 31... Ne5 {[%clk 0:01:44.4]} 32.
Bg3 {[%clk 0:01:33.3]} 32... Nxf3+ {[%clk 0:01:44.7]} 33. Kh1 {[%clk 0:01:28.7]}
33... Qe3 {[%clk 0:01:34.4]} 34. dxc6 {[%clk 0:01:27.9]} 34... Rf6 {[%clk
0:00:44.2]} 35. c7 {[%clk 0:01:20.8]} 35... Nd4 {[%clk 0:00:43.7]} 36. Qg2
{[%clk 0:01:18.3]} 36... Rcf8 {[%clk 0:00:33.6]} 37. Rxf6 {[%clk 0:01:07.2]}
37... Qxc1+ {[%clk 0:00:31.3]} 38. Qg1 {[%clk 0:00:51.7]} 38... Qxg1+ {[%clk
0:00:27.8]} 39. Kxg1 {[%clk 0:00:52.6]} 39... Kxf6 {[%clk 0:00:26.6]} 0-1

[Event "Late-Titled-Tuesday-Blitz-October-10-2023"]
[Site "Chess.com"]
[Date "2023.10.10"]
[Round "5"]
[White "canary2016"]
[Black "PatzerSmashers"]
[Result "0-1"]
[WhiteElo "2176"]
[BlackElo "2398"]
[TimeControl "180+1"]
[EndTime "14:51:31 PDT"]
[Termination "PatzerSmashers won by resignation"]

1. e4 {[%clk 0:03:00.1]} 1... c5 {[%clk 0:02:57.7]} 2. d4 {[%clk 0:02:58.9]}
2... cxd4 {[%clk 0:02:57.7]} 3. c3 {[%clk 0:02:59.8]} 3... dxc3 {[%clk
0:02:58.6]} 4. Nxc3 {[%clk 0:03:00.3]} 4... Nc6 {[%clk 0:02:59.5]} 5. Nf3 {[%clk
0:02:59.7]} 5... e6 {[%clk 0:03:00.2]} 6. Bb5 {[%clk 0:02:59.6]} 6... a6 {[%clk
0:03:00.9]} 7. Bc4 {[%clk 0:02:58.9]} 7... b5 {[%clk 0:03:00.5]} 8. Bb3 {[%clk
0:02:58.7]} 8... Bb7 {[%clk 0:03:00.4]} 9. O-O {[%clk 0:02:58.5]} 9... Na5
{[%clk 0:02:59.7]} 10. Bf4 {[%clk 0:02:47.5]} 10... d6 {[%clk 0:02:43.4]} 11.
Rc1 {[%clk 0:02:46.4]} 11... Be7 {[%clk 0:02:36.7]} 12. a4 {[%clk 0:02:23.7]}
12... b4 {[%clk 0:02:23.1]} 13. Na2 {[%clk 0:02:16.9]} 13... Nf6 {[%clk
0:02:14]} 14. Nxb4 {[%clk 0:02:15.8]} 14... Nxe4 {[%clk 0:01:57.5]} 15. Be3
{[%clk 0:01:59.6]} 15... O-O {[%clk 0:01:51.4]} 16. Nd4 {[%clk 0:01:54.1]} 16...
Nxb3 {[%clk 0:01:41.8]} 17. Qxb3 {[%clk 0:01:53.1]} 17... Nc5 {[%clk 0:01:41.2]}
18. Qc2 {[%clk 0:01:43.3]} 18... Rc8 {[%clk 0:01:39.6]} 19. Qd1 {[%clk
0:01:29.8]} 19... Bf6 {[%clk 0:01:21.9]} 20. Nd3 {[%clk 0:01:19]} 20... Nxd3
{[%clk 0:01:11.3]} 21. Qxd3 {[%clk 0:01:19]} 21... Qa5 {[%clk 0:01:08.5]} 22. b3
{[%clk 0:00:52.7]} 22... Qd5 {[%clk 0:01:00.5]} 23. Rxc8 {[%clk 0:00:19.2]}
23... Rxc8 {[%clk 0:00:59.6]} 24. f3 {[%clk 0:00:14.3]} 24... e5 {[%clk
0:00:58.5]} 25. Qf5 {[%clk 0:00:06.3]} 25... exd4 {[%clk 0:00:57.2]} 26. Qxd5
{[%clk 0:00:06.5]} 26... Bxd5 {[%clk 0:00:57.4]} 27. Bf4 {[%clk 0:00:06.6]}
27... Bxb3 {[%clk 0:00:56.5]} 28. Bxd6 {[%clk 0:00:06.7]} 28... d3 {[%clk
0:00:55.7]} 29. Bf4 {[%clk 0:00:05.4]} 29... Bxa4 {[%clk 0:00:55.7]} 30. Ra1
{[%clk 0:00:04.4]} 30... Bxa1 {[%clk 0:00:54.9]} 0-1

[Event "Late-Titled-Tuesday-Blitz-October-10-2023"]
[Site "Chess.com"]
[Date "2023.10.10"]
[Round "5"]
[White "K_A_S_T_O_R"]
[Black "Russian_berezka"]
[Result "1-0"]
[WhiteElo "2895"]
[BlackElo "2665"]
[TimeControl "180+1"]
[EndTime "14:51:34 PDT"]
[Termination "K_A_S_T_O_R won by resignation"]

1. e4 {[%clk 0:03:00.9]} 1... g6 {[%clk 0:02:59.8]} 2. d4 {[%clk 0:03:00.4]}
2... Bg7 {[%clk 0:03:00.3]} 3. Nf3 {[%clk 0:03:00.7]} 3... c6 {[%clk 0:02:55.9]}
4. Nc3 {[%clk 0:03:00.2]} 4... d5 {[%clk 0:02:55.6]} 5. h3 {[%clk 0:02:59.8]}
5... dxe4 {[%clk 0:02:54.3]} 6. Nxe4 {[%clk 0:03:00.4]} 6... Nf6 {[%clk
0:02:54.8]} 7. Nxf6+ {[%clk 0:02:56.9]} 7... exf6 {[%clk 0:02:51.2]} 8. Bc4
{[%clk 0:02:56.5]} 8... O-O {[%clk 0:02:50.7]} 9. O-O {[%clk 0:02:55.6]} 9...
Nd7 {[%clk 0:02:47.6]} 10. Bf4 {[%clk 0:02:51.5]} 10... Nb6 {[%clk 0:02:46.9]}
11. Bb3 {[%clk 0:02:51.1]} 11... Bf5 {[%clk 0:02:44.4]} 12. Re1 {[%clk
0:02:38.8]} 12... Re8 {[%clk 0:02:41.5]} 13. c3 {[%clk 0:02:29.4]} 13... Nd5
{[%clk 0:02:31.4]} 14. Bg3 {[%clk 0:02:28.6]} 14... Qd7 {[%clk 0:02:29.6]} 15.
Qd2 {[%clk 0:02:22.6]} 15... Rxe1+ {[%clk 0:02:26.9]} 16. Rxe1 {[%clk
0:02:17.3]} 16... Re8 {[%clk 0:02:25.5]} 17. c4 {[%clk 0:02:13.4]} 17... Nb6
{[%clk 0:02:11.1]} 18. Rxe8+ {[%clk 0:02:06.9]} 18... Qxe8 {[%clk 0:02:11]} 19.
Qa5 {[%clk 0:02:07.5]} 19... Nc8 {[%clk 0:01:52.9]} 20. d5 {[%clk 0:02:03.3]}
20... cxd5 {[%clk 0:01:37.7]} 21. cxd5 {[%clk 0:01:58]} 21... Qd7 {[%clk
0:01:35]} 22. Ba4 {[%clk 0:01:51.2]} 22... b5 {[%clk 0:01:17.9]} 23. Qxb5 {[%clk
0:01:44.1]} 23... Qxb5 {[%clk 0:01:17.9]} 24. Bxb5 {[%clk 0:01:44.7]} 24... Be4
{[%clk 0:01:18.4]} 25. d6 {[%clk 0:01:43.2]} 25... Nb6 {[%clk 0:00:23.2]} 26. d7
{[%clk 0:01:42.8]} 26... Nxd7 {[%clk 0:00:22.4]} 27. Bxd7 {[%clk 0:01:42.4]}
27... Bxf3 {[%clk 0:00:23.3]} 28. gxf3 {[%clk 0:01:42]} 28... f5 {[%clk
0:00:24.2]} 29. b3 {[%clk 0:01:42.3]} 29... g5 {[%clk 0:00:23.9]} 30. Bd6 {[%clk
0:01:40.4]} 30... Bd4 {[%clk 0:00:23]} 31. Kf1 {[%clk 0:01:38.5]} 31... f4
{[%clk 0:00:22.3]} 32. Be7 {[%clk 0:01:36.8]} 32... h6 {[%clk 0:00:22.1]} 33. h4
{[%clk 0:01:35.5]} 33... f6 {[%clk 0:00:21.5]} 34. Be6+ {[%clk 0:01:34.8]} 34...
Kg7 {[%clk 0:00:21.3]} 35. h5 {[%clk 0:01:35.2]} 35... Bb6 {[%clk 0:00:17.8]}
36. b4 {[%clk 0:01:34.8]} 36... Be3 {[%clk 0:00:16]} 37. a4 {[%clk 0:01:34.6]}
37... Bd4 {[%clk 0:00:15.7]} 38. Bc5 {[%clk 0:01:34.3]} 38... Bc3 {[%clk
0:00:14.7]} 39. b5 {[%clk 0:01:34.1]} 39... Bd4 {[%clk 0:00:12.6]} 40. Bxd4
{[%clk 0:01:33.9]} 40... Kf8 {[%clk 0:00:13.1]} 41. Bxa7 {[%clk 0:01:31.8]}
41... Ke7 {[%clk 0:00:14]} 42. Bf5 {[%clk 0:01:31.8]} 42... Kd6 {[%clk
0:00:14.3]} 43. Bd4 {[%clk 0:01:31.8]} 43... g4 {[%clk 0:00:15.2]} 44. fxg4
{[%clk 0:01:30.9]} 44... f3 {[%clk 0:00:16.1]} 45. Be4 {[%clk 0:01:29.1]} 45...
f5 {[%clk 0:00:16]} 46. gxf5 {[%clk 0:01:29.7]} 46... Ke7 {[%clk 0:00:15.9]} 47.
b6 {[%clk 0:01:29.9]} 47... Kd7 {[%clk 0:00:15.8]} 48. a5 {[%clk 0:01:29.4]}
48... Kc8 {[%clk 0:00:15.7]} 49. b7+ {[%clk 0:01:28.4]} 49... Kd8 {[%clk
0:00:16.6]} 50. b8=Q+ {[%clk 0:01:27.9]} 50... Ke7 {[%clk 0:00:17.5]} 1-0